fUSD/lending_fUSD_20240823
["ID","MTS","AMOUNT","RATE_DAILY","PERIOD"]
[335664388,1724406655079,-1823.71,0.00010994,2]
[335664389,1724406655089,-1261.79,0.00010994,2]
[335664390,1724406655101,-848.28,0.00010994,2]
[335664391,1724406655112,-1561.82,0.00010994,2]
[335664392,1724406655122,-500.0,0.00010994,2]
[335664393,1724406655134,-500.0,0.00010994,2]
[335664394,1724406655144,-661.23,0.00010994,2]
[335664395,1724406655155,-1127.87,0.00010994,2]
[335664396,1724406655165,-1260.8,0.00010994,2]
[335664397,1724406655177,-500.0,0.00010994,2]
[335664398,1724406655186,-500.0,0.00010994,2]
[335664399,1724406655196,-500.0,0.00010994,2]
[335664400,1724406655207,-500.0,0.00010994,2]
[335664401,1724406655217,-687.52,0.00010994,2]
[335664402,1724406655227,-676.57,0.00010994,2]
[335664403,1724406655236,-5000.0,0.00010994,2]
[335664404,1724406655246,-500.0,0.00010994,2]
[335664405,1724406655256,-682.13,0.00010994,2]
[335664406,1724406655265,-500.0,0.00010994,2]
[335664407,1724406655274,-1718.86,0.00010994,2]
[335664408,1724406655284,-500.0,0.00010994,2]
[335664409,1724406655294,-4145.58,0.00010994,2]
[335664410,1724406655303,-714.42,0.00010994,2]
[335664411,1724406655312,-792.92,0.00010994,2]
[335664412,1724406655321,-500.0,0.00010994,2]
[335664413,1724406655330,-1365.29,0.00010994,2]
[335664414,1724406655340,-500.0,0.00010994,2]
[335664415,1724406655349,-709.53,0.00010994,2]
[335664416,1724406655359,-2237.24,0.00010994,2]
[335664417,1724406655368,-958.7,0.00010994,2]
[335664418,1724406655378,-500.0,0.00010994,2]
[335664419,1724406655388,-1604.16,0.00010994,2]
[335664420,1724406655398,-153.92655447,0.00010994,2]
[335664421,1724406655407,-2905.53992152,0.00010994,2]
[335664422,1724406655417,-500.0,0.00010995,2]
[335664423,1724406655426,-1039.44,0.00010995,2]
[335664424,1724406655436,-500.0,0.00010995,2]
[335664425,1724406655445,-500.0,0.00010995,2]
[335664426,1724406655456,-500.0,0.00010995,2]
[335664427,1724406655465,-3082.65,0.00010995,2]
[335664428,1724406655474,-569.28,0.00010995,2]
[335664429,1724406655483,-573.76,0.00010995,2]
[335664430,1724406655492,-2145.87,0.00010995,2]
[335664431,1724406655501,-1132.28,0.00010995,2]
[335664432,1724406655511,-542.74,0.00010995,2]
[335664433,1724406655520,-742.06,0.00010995,2]
[335664434,1724406655529,-4385.31,0.00010995,2]
[335664435,1724406655538,-807.98,0.00010995,2]
[335664436,1724406655548,-500.0,0.00010995,2]
[335664437,1724406655557,-638.17,0.00010995,2]
[335664438,1724406655566,-907.92,0.00010995,2]
[335664439,1724406655576,-997.33,0.00010995,2]
[335664440,1724406655585,-544.76,0.00010995,2]
[335664441,1724406655595,-574.22,0.00010995,2]
[335664442,1724406655604,-1519.35,0.00010995,2]
[335664443,1724406655614,-634.4864762,0.00010995,2]
[335664444,1724406655624,-500.0,0.00010995,2]
[335664445,1724406655634,-1553.62,0.00010995,2]
[335664446,1724406655644,-4204.34,0.00010995,2]
[335664447,1724406655654,-1463.39,0.00010995,2]
[335664448,1724406655664,-246.05015353,0.00010995,2]
[335664449,1724406655676,-19418.54,0.00010995,2]
[335664450,1724406655687,-5007.75,0.00010995,2]
[335664451,1724406655696,-2120.38,0.00010995,2]
[335664452,1724406655707,-500.0,0.00010995,2]
[335664453,1724406655717,-5531.66,0.00010995,2]
[335664454,1724406655727,-767.55,0.00010995,2]
[335664455,1724406655736,-500.0,0.00010995,2]
[335664456,1724406655747,-1857.33,0.00010995,2]
[335664457,1724406655758,-892.25,0.00010995,2]
[335664458,1724406655768,-500.0,0.00010995,2]
[335664459,1724406655778,-500.0,0.00010995,2]
[335664460,1724406655788,-637.47,0.00010995,2]
[335664461,1724406655797,-3934.93,0.00010995,2]
[335664462,1724406655807,-776.13,0.00010995,2]
[335664463,1724406655816,-2329.67,0.00010995,2]
[335664464,1724406655826,-688.56,0.00010995,2]
[335664465,1724406655835,-4981.21,0.00010995,2]
[335664466,1724406655846,-721.7,0.00010995,2]
[335664467,1724406655855,-500.0,0.00010995,2]
[335664468,1724406655865,-1248.73,0.00010995,2]
[335664469,1724406655874,-1520.94,0.00010995,2]
[335664470,1724406655883,-1040.96,0.00010995,2]
[335664471,1724406655893,-1466.63,0.00010995,2]
[335664472,1724406655902,-500.0,0.00010995,2]
[335664473,1724406655913,-2081.86,0.00010995,2]
[335664474,1724406655923,-891.21,0.00010995,2]
[335664475,1724406655932,-4286.48,0.00010995,2]
[335664476,1724406655942,-1416.28,0.00010995,2]
[335664477,1724406655951,-2331.37,0.00010995,2]
[335664478,1724406655960,-500.0,0.00010995,2]
[335664479,1724406655970,-792.18,0.00010995,2]
[335664480,1724406655979,-678.89,0.00010995,2]
[335664481,1724406655989,-1581.21,0.00010995,2]
[335664482,1724406655998,-1152.68,0.00010995,2]
[335664483,1724406656007,-11311.29,0.00010995,2]
[335664484,1724406656017,-2746.66,0.00010995,2]
[335664485,1724406656026,-1054.49,0.00010995,2]
[335664486,1724406656036,-530.23,0.00010995,2]
[335664487,1724406656045,-500.0,0.00010995,2]
[335664488,1724406656055,-500.0,0.00010995,2]
[335664489,1724406656064,-1557.99,0.00010995,2]
[335664490,1724406656074,-730.46,0.00010995,2]
[335664491,1724406656083,-931.71,0.00010995,2]
[335664492,1724406656093,-1061.25,0.00010995,2]
[335664493,1724406656103,-703.69,0.00010995,2]
[335664494,1724406656112,-1654.87,0.00010995,2]
[335664495,1724406656122,-1031.51,0.00010995,2]
[335664496,1724406656131,-1327.69,0.00010995,2]
[335664497,1724406656141,-1891.85,0.00010995,2]
[335664498,1724406656150,-2238.14,0.00010995,2]
[335664499,1724406656159,-763.46,0.00010995,2]
[335664500,1724406656168,-255.69,0.00010995,2]
[335664501,1724406656177,-500.0,0.00010995,2]
[335664502,1724406656187,-2940.88,0.00010995,2]
[335664503,1724406656196,-1079.11,0.00010995,2]
[335664504,1724406656207,-792.52,0.00010995,2]
[335664505,1724406656216,-896.38,0.00010995,2]
[335664506,1724406656225,-500.0,0.00010995,2]
[335664507,1724406656234,-1127.29,0.00010995,2]
[335664508,1724406656245,-611.8,0.00010995,2]
[335664509,1724406656254,-1360.02,0.00010995,2]
[335664510,1724406656265,-1059.21,0.00010995,2]
[335664511,1724406656275,-3094.28,0.00010995,2]
[335664512,1724406656285,-513.55,0.00010995,2]
[335664513,1724406656295,-1592.41,0.00010995,2]
[335664514,1724406656304,-1120.76,0.00010995,2]
[335664515,1724406656313,-832.4,0.00010995,2]
[335664516,1724406656323,-500.0,0.00010995,2]
[335664517,1724406656332,-4554.27,0.00010995,2]
[335664518,1724406656341,-1063.66,0.00010995,2]
[335664519,1724406656351,-730.94,0.00010995,2]
[335664520,1724406656361,-875.98,0.00010995,2]
[335664521,1724406656370,-500.0,0.00010995,2]
[335664522,1724406656380,-1141.36,0.00010995,2]
[335664523,1724406656390,-865.23,0.00010995,2]
[335664524,1724406656399,-500.0,0.00010995,2]
[335664525,1724406656409,-1678.89,0.00010995,2]
[335664526,1724406656418,-744.46,0.00010995,2]
[335664527,1724406656428,-500.0,0.00010995,2]
[335664528,1724406656437,-196.19,0.00010995,2]
[335664529,1724406656447,-500.0,0.00010995,2]
[335664530,1724406656459,-932.13,0.00010995,2]
[335664531,1724406656468,-1823.71,0.00010995,2]
[335664532,1724406656481,-1209.21,0.00010995,2]
[335664533,1724406656491,-1261.79,0.00010995,2]
[335664534,1724406656500,-1899.01,0.00010995,2]
[335664535,1724406656510,-1120.32,0.00010995,2]
[335664536,1724406656519,-15999.6,0.00010995,2]
[335664537,1724406656528,-661.23,0.00010995,2]
[335664538,1724406656538,-1127.87,0.00010995,2]
[335664539,1724406656548,-1260.8,0.00010995,2]
[335664540,1724406656557,-500.0,0.00010995,2]
[335664541,1724406656566,-500.0,0.00010995,2]
[335664542,1724406656576,-500.0,0.00010995,2]
[335664543,1724406656585,-5287.76,0.00010995,2]
[335664544,1724406656594,-500.0,0.00010995,2]
[335664545,1724406656604,-687.52,0.00010995,2]
[335664546,1724406656613,-676.57,0.00010995,2]
[335664547,1724406656623,-322.4634361,0.00010995,2]
[335664548,1724406656632,-500.0,0.00010995,2]
[335664549,1724406656641,-1718.86,0.00010995,2]
[335664550,1724406656650,-2651.29,0.00010995,2]
[335664551,1724406656659,-500.0,0.00010995,2]
[335664552,1724406656669,-4145.58,0.00010995,2]
[335664553,1724406656682,-714.42,0.00010995,2]
[335664554,1724406656691,-577.06717335,0.00010995,2]
[335664555,1724406656702,-1365.29,0.00010995,2]
[335664556,1724406656712,-5772.31,0.00010995,2]
[335664557,1724406656722,-500.0,0.00010995,2]
[335664558,1724406656731,-500.0,0.00010995,2]
[335664559,1724406656740,-709.53,0.00010995,2]
[335664560,1724406656751,-2237.24,0.00010995,2]
[335664561,1724406656761,-958.7,0.00010995,2]
[335664562,1724406656770,-500.0,0.00010995,2]
[335664563,1724406656780,-1604.16,0.00010995,2]
[335664564,1724406656789,-3050.71,0.00010995,2]
[335664565,1724406656799,-5811.07984304,0.00010995,2]
[335664566,1724406656808,-1353.91,0.00010996,2]
[335664567,1724406656819,-1353.91,0.00010996,2]
[335664568,1724406656828,-746.2,0.00010996,2]
[335664569,1724406656837,-746.2,0.00010996,2]
[335664570,1724406656847,-730.13,0.00010996,2]
[335664571,1724406656856,-730.13,0.00010996,2]
[335664572,1724406656866,-542.74,0.00010996,2]
[335664573,1724406656876,-704.18,0.00010996,2]
[335664574,1724406656886,-704.18,0.00010996,2]
[335664575,1724406656895,-639.38,0.00010996,2]
[335664576,1724406656905,-639.38,0.00010996,2]
[335664577,1724406656914,-4385.31,0.00010996,2]
[335664578,1724406656923,-666.85,0.00010996,2]
[335664579,1724406656932,-666.85,0.00010996,2]
[335664580,1724406656942,-830.54,0.00010996,2]
[335664581,1724406656952,-830.54,0.00010996,2]
[335664582,1724406656962,-805.9,0.00010996,2]
[335664583,1724406656973,-805.9,0.00010996,2]
[335664584,1724406656983,-1180.22,0.00010996,2]
[335664585,1724406656993,-1180.22,0.00010996,2]
[335664586,1724406657003,-638.17,0.00010996,2]
[335664587,1724406657012,-784.32,0.00010996,2]
[335664588,1724406657021,-784.32,0.00010996,2]
[335664589,1724406657031,-718.26,0.00010996,2]
[335664590,1724406657040,-718.26,0.00010996,2]
[335664591,1724406657051,-940.93,0.00010996,2]
[335664592,1724406657061,-940.93,0.00010996,2]
[335664593,1724406657070,-837.68,0.00010996,2]
[335664594,1724406657080,-837.68,0.00010996,2]
[335664595,1724406657091,-907.92,0.00010996,2]
[335664596,1724406657100,-907.92,0.00010996,2]
[335664597,1724406657110,-907.92,0.00010996,2]
[335664598,1724406657120,-997.33,0.00010996,2]
[335664599,1724406657129,-544.76,0.00010996,2]
[335664600,1724406657140,-574.22,0.00010996,2]
[335664601,1724406657150,-848.38,0.00010996,2]
[335664602,1724406657159,-848.38,0.00010996,2]
[335664603,1724406657169,-500.0,0.00010996,2]
[335664604,1724406657178,-500.0,0.00010996,2]
[335664605,1724406657187,-500.0,0.00010996,2]
[335664606,1724406657196,-1553.62,0.00010996,2]
[335664607,1724406657205,-19418.54,0.00010996,2]
[335664608,1724406657214,-5007.75,0.00010996,2]
[335664609,1724406657224,-767.55,0.00010996,2]
[335664610,1724406657233,-767.55,0.00010996,2]
[335664611,1724406657288,-767.55,0.00010996,2]
[335664612,1724406657297,-1857.33,0.00010996,2]
[335664613,1724406657306,-892.25,0.00010996,2]
[335664614,1724406657316,-892.25,0.00010996,2]
[335664615,1724406657325,-892.25,0.00010996,2]
[335664616,1724406657334,-500.0,0.00010996,2]
[335664617,1724406657344,-500.0,0.00010996,2]
[335664618,1724406657354,-443.31,0.00010996,2]
[335664619,1724406657364,-637.47,0.00010996,2]
[335664620,1724406657374,-637.47,0.00010996,2]
[335664621,1724406657384,-637.47,0.00010996,2]
[335664622,1724406657396,-776.13,0.00010996,2]
[335664623,1724406657405,-394.66,0.00010996,2]
[335664624,1724406657414,-688.56,0.00010996,2]
[335664625,1724406657426,-688.56,0.00010996,2]
[335664626,1724406657436,-688.56,0.00010996,2]
[335664627,1724406657445,-721.7,0.00010996,2]
[335664628,1724406657455,-500.0,0.00010996,2]
[335664629,1724406657465,-1520.94,0.00010996,2]
[335664630,1724406657474,-658.18,0.00010996,2]
[335664631,1724406657484,-658.18,0.00010996,2]
[335664632,1724406657493,-500.0,0.00010996,2]
[335664633,1724406657503,-2081.86,0.00010996,2]
[335664634,1724406657512,-891.21,0.00010996,2]
[335664635,1724406657521,-891.21,0.00010996,2]
[335664636,1724406657531,-891.21,0.00010996,2]
[335664637,1724406657540,-1416.28,0.00010996,2]
[335664638,1724406657550,-500.0,0.00010996,2]
[335664639,1724406657560,-792.18,0.00010996,2]
[335664640,1724406657569,-837.79,0.00010996,2]
[335664641,1724406657579,-837.79,0.00010996,2]
[335664642,1724406657588,-1581.21,0.00010996,2]
[335664643,1724406657598,-11311.29,0.00010996,2]
[335664644,1724406657607,-11311.29,0.00010996,2]
[335664645,1724406657616,-11311.29,0.00010996,2]
[335664646,1724406657626,-1054.49,0.00010996,2]
[335664647,1724406657635,-530.23,0.00010996,2]
[335664648,1724406657645,-530.23,0.00010996,2]
[335664649,1724406657655,-530.23,0.00010996,2]
[335664650,1724406657665,-1557.99,0.00010996,2]
[335664651,1724406657677,-730.46,0.00010996,2]
[335664652,1724406657686,-931.71,0.00010996,2]
[335664653,1724406657696,-730.46,0.00010996,2]
[335664654,1724406657706,-931.71,0.00010996,2]
[335664655,1724406657716,-730.46,0.00010996,2]
[335664656,1724406657725,-931.71,0.00010996,2]
[335664657,1724406657735,-1061.25,0.00010996,2]
[335664658,1724406657745,-1061.25,0.00010996,2]
[335664659,1724406657755,-1061.25,0.00010996,2]
[335664660,1724406657765,-1654.87,0.00010996,2]
[335664661,1724406657774,-1654.87,0.00010996,2]
[335664662,1724406657784,-1654.87,0.00010996,2]
[335664663,1724406657793,-1031.51,0.00010996,2]
[335664664,1724406657803,-1031.51,0.00010996,2]
[335664665,1724406657812,-1031.51,0.00010996,2]
[335664666,1724406657822,-500.0,0.00010996,2]
[335664667,1724406657831,-497.01176865,0.00010996,2]
[335664668,1724406657840,-1891.85,0.00010996,2]
[335664669,1724406657849,-2238.14,0.00010996,2]
[335664670,1724406657858,-2238.14,0.00010996,2]
[335664671,1724406657868,-2238.14,0.00010996,2]
[335664672,1724406657877,-763.46,0.00010996,2]
[335664673,1724406657887,-763.46,0.00010996,2]
[335664674,1724406657897,-763.46,0.00010996,2]
[335664675,1724406657907,-500.0,0.00010996,2]
[335664676,1724406657916,-1079.11,0.00010996,2]
[335664677,1724406657926,-1079.11,0.00010996,2]
[335664678,1724406657935,-792.52,0.00010996,2]
[335664679,1724406657944,-1079.11,0.00010996,2]
[335664680,1724406657955,-792.52,0.00010996,2]
[335664681,1724406657964,-792.52,0.00010996,2]
[335664682,1724406657974,-896.38,0.00010996,2]
[335664683,1724406657983,-1127.29,0.00010996,2]
[335664684,1724406657993,-1127.29,0.00010996,2]
[335664685,1724406658002,-1127.29,0.00010996,2]
[335664686,1724406658011,-674.76,0.00010996,2]
[335664687,1724406658021,-674.76,0.00010996,2]
[335664688,1724406658031,-1360.02,0.00010996,2]
[335664689,1724406658040,-1360.02,0.00010996,2]
[335664690,1724406658050,-1360.02,0.00010996,2]
[335664691,1724406658060,-3094.28,0.00010996,2]
[335664692,1724406658069,-3094.28,0.00010996,2]
[335664693,1724406658078,-513.55,0.00010996,2]
[335664694,1724406658088,-3094.28,0.00010996,2]
[335664695,1724406658097,-1592.41,0.00010996,2]
[335664696,1724406658107,-1592.41,0.00010996,2]
[335664697,1724406658116,-1592.41,0.00010996,2]
[335664698,1724406658126,-1120.76,0.00010996,2]
[335664699,1724406658134,-500.0,0.00010996,2]
[335664700,1724406658143,-500.0,0.00010996,2]
[335664701,1724406658153,-832.4,0.00010996,2]
[335664702,1724406658162,-832.4,0.00010996,2]
[335664703,1724406658171,-500.0,0.00010996,2]
[335664704,1724406658180,-832.4,0.00010996,2]
[335664705,1724406658189,-730.94,0.00010996,2]
[335664706,1724406658198,-730.94,0.00010996,2]
[335664707,1724406658209,-730.94,0.00010996,2]
[335664708,1724406658219,-875.98,0.00010996,2]
[335664709,1724406658229,-875.98,0.00010996,2]
[335664710,1724406658238,-875.98,0.00010996,2]
[335664711,1724406658247,-500.0,0.00010996,2]
[335664712,1724406658257,-500.0,0.00010996,2]
[335664713,1724406658266,-500.0,0.00010996,2]
[335664714,1724406658275,-1141.36,0.00010996,2]
[335664715,1724406658285,-1141.36,0.00010996,2]
[335664716,1724406658294,-1141.36,0.00010996,2]
[335664717,1724406658303,-500.0,0.00010996,2]
[335664718,1724406658312,-865.23,0.00010996,2]
[335664719,1724406658322,-1678.89,0.00010996,2]
[335664720,1724406658331,-744.46,0.00010996,2]
[335664721,1724406658341,-744.46,0.00010996,2]
[335664722,1724406658350,-744.46,0.00010996,2]
[335664723,1724406658359,-500.0,0.00010996,2]
[335664724,1724406658368,-500.0,0.00010996,2]
[335664725,1724406658377,-500.0,0.00010996,2]
[335664726,1724406658387,-932.13,0.00010996,2]
[335664727,1724406658396,-1823.71,0.00010996,2]
[335664728,1724406658406,-1261.79,0.00010996,2]
[335664729,1724406658415,-1261.79,0.00010996,2]
[335664730,1724406658424,-1261.79,0.00010996,2]
[335664731,1724406658433,-1561.82,0.00010996,2]
[335664732,1724406658443,-1561.82,0.00010996,2]
[335664733,1724406658454,-661.23,0.00010996,2]
[335664734,1724406658464,-1127.87,0.00010996,2]
[335664735,1724406658473,-1260.8,0.00010996,2]
[335664736,1724406658483,-500.0,0.00010996,2]
[335664737,1724406658493,-500.0,0.00010996,2]
[335664738,1724406658503,-500.0,0.00010996,2]
[335664739,1724406658512,-500.0,0.00010996,2]
[335664740,1724406658522,-500.0,0.00010996,2]
[335664741,1724406658532,-500.0,0.00010996,2]
[335664742,1724406658542,-500.0,0.00010996,2]
[335664743,1724406658552,-500.0,0.00010996,2]
[335664744,1724406658562,-687.52,0.00010996,2]
[335664745,1724406658572,-687.52,0.00010996,2]
[335664746,1724406658582,-687.52,0.00010996,2]
[335664747,1724406658591,-150.75786064,0.00010996,2]
[335664748,1724406658601,-676.57,0.00010996,2]
[335664749,1724406658611,-500.0,0.00010996,2]
[335664750,1724406658621,-1718.86,0.00010996,2]
[335664751,1724406658632,-500.0,0.00010996,2]
[335664752,1724406658642,-1718.86,0.00010996,2]
[335664753,1724406658652,-500.0,0.00010996,2]
[335664754,1724406658663,-1718.86,0.00010996,2]
[335664755,1724406658673,-500.0,0.00010996,2]
[335664756,1724406658687,-4145.58,0.00010996,2]
[335664757,1724406658697,-1718.86,0.00010996,2]
[335664758,1724406658710,-714.42,0.00010996,2]
[335664759,1724406658721,-714.42,0.00010996,2]
[335664760,1724406658730,-714.42,0.00010996,2]
[335664761,1724406658739,-792.92,0.00010996,2]
[335664762,1724406658750,-792.92,0.00010996,2]
[335664763,1724406658762,-1365.29,0.00010996,2]
[335664764,1724406658772,-500.0,0.00010996,2]
[335664765,1724406658782,-709.53,0.00010996,2]
[335664766,1724406658791,-709.53,0.00010996,2]
[335664767,1724406658801,-709.53,0.00010996,2]
[335664768,1724406658811,-2237.24,0.00010996,2]
[335664769,1724406658821,-2237.24,0.00010996,2]
[335664770,1724406658830,-958.7,0.00010996,2]
[335664771,1724406658840,-2237.24,0.00010996,2]
[335664772,1724406658850,-2237.24,0.00010996,2]
[335664773,1724406658860,-500.0,0.00010996,2]
[335664774,1724406658870,-500.0,0.00010996,2]
[335664775,1724406658879,-500.0,0.00010996,2]
[335664776,1724406658889,-1604.16,0.00010996,2]
[335664777,1724406658898,-1604.16,0.00010996,2]
[335664778,1724406658908,-1604.16,0.00010996,2]
[335664779,1724406658918,-1604.16,0.00010996,2]
[335664780,1724406658928,-2905.53992152,0.00010996,2]
[335664781,1724406658937,-698.51,0.00010997,2]
[335664782,1724406658947,-846.2,0.00010997,2]
[335664783,1724406658958,-628.24,0.00010997,2]
[335664784,1724406658967,-500.0,0.00010997,2]
[335664785,1724406658977,-2281.48,0.00010997,2]
[335664786,1724406658987,-1825.11,0.00010997,2]
[335664787,1724406658997,-610.49,0.00010997,2]
[335664788,1724406659007,-1353.91,0.00010997,2]
[335664789,1724406659017,-1353.91,0.00010997,2]
[335664790,1724406659027,-1353.91,0.00010997,2]
[335664791,1724406659036,-1353.91,0.00010997,2]
[335664792,1724406659047,-1353.91,0.00010997,2]
[335664793,1724406659057,-1494.24,0.00010997,2]
[335664794,1724406659067,-746.2,0.00010997,2]
[335664795,1724406659077,-746.2,0.00010997,2]
[335664796,1724406659086,-746.2,0.00010997,2]
[335664797,1724406659096,-746.2,0.00010997,2]
[335664798,1724406659106,-746.2,0.00010997,2]
[335664799,1724406659115,-730.13,0.00010997,2]
[335664800,1724406659125,-730.13,0.00010997,2]
[335664801,1724406659136,-730.13,0.00010997,2]
[335664802,1724406659148,-542.74,0.00010997,2]
[335664803,1724406659158,-730.13,0.00010997,2]
[335664804,1724406659168,-542.74,0.00010997,2]
[335664805,1724406659178,-730.13,0.00010997,2]
[335664806,1724406659189,-542.74,0.00010997,2]
[335664807,1724406659200,-542.74,0.00010997,2]
[335664808,1724406659210,-542.74,0.00010997,2]
[335664809,1724406659220,-791.77,0.00010997,2]
[335664810,1724406659230,-1135.61,0.00010997,2]
[335664811,1724406659241,-704.18,0.00010997,2]
[335664812,1724406659251,-704.18,0.00010997,2]
[335664813,1724406659261,-704.18,0.00010997,2]
[335664814,1724406659270,-704.18,0.00010997,2]
[335664815,1724406659280,-704.18,0.00010997,2]
[335664816,1724406659291,-500.0,0.00010997,2]
[335664817,1724406659301,-572.42,0.00010997,2]
[335664818,1724406659311,-500.0,0.00010997,2]
[335664819,1724406659321,-639.38,0.00010997,2]
[335664820,1724406659331,-639.38,0.00010997,2]
[335664821,1724406659343,-639.38,0.00010997,2]
[335664822,1724406659354,-639.38,0.00010997,2]
[335664823,1724406659365,-639.38,0.00010997,2]
[335664824,1724406659375,-4385.31,0.00010997,2]
[335664825,1724406659385,-4385.31,0.00010997,2]
[335664826,1724406659395,-4385.31,0.00010997,2]
[335664827,1724406659405,-4385.31,0.00010997,2]
[335664828,1724406659415,-4385.31,0.00010997,2]
[335664829,1724406659425,-500.0,0.00010997,2]
[335664830,1724406659435,-1618.16,0.00010997,2]
[335664831,1724406659445,-500.0,0.00010997,2]
[335664832,1724406659456,-822.38,0.00010997,2]
[335664833,1724406659466,-500.0,0.00010997,2]
[335664834,1724406659476,-666.85,0.00010997,2]
[335664835,1724406659486,-666.85,0.00010997,2]
[335664836,1724406659496,-666.85,0.00010997,2]
[335664837,1724406659505,-666.85,0.00010997,2]
[335664838,1724406659515,-666.85,0.00010997,2]
[335664839,1724406659525,-4798.83,0.00010997,2]
[335664840,1724406659534,-3362.04,0.00010997,2]
[335664841,1724406659543,-500.0,0.00010997,2]
[335664842,1724406659553,-830.54,0.00010997,2]
[335664843,1724406659562,-830.54,0.00010997,2]
[335664844,1724406659573,-830.54,0.00010997,2]
[335664845,1724406659583,-830.54,0.00010997,2]
[335664846,1724406659593,-830.54,0.00010997,2]
[335664847,1724406659604,-805.9,0.00010997,2]
[335664848,1724406659614,-805.9,0.00010997,2]
[335664849,1724406659624,-805.9,0.00010997,2]
[335664850,1724406659635,-805.9,0.00010997,2]
[335664851,1724406659646,-701.57,0.00010997,2]
[335664852,1724406659656,-805.9,0.00010997,2]
[335664853,1724406659666,-500.0,0.00010997,2]
[335664854,1724406659677,-1180.22,0.00010997,2]
[335664855,1724406659687,-1180.22,0.00010997,2]
[335664856,1724406659698,-1180.22,0.00010997,2]
[335664857,1724406659710,-1180.22,0.00010997,2]
[335664858,1724406659720,-1180.22,0.00010997,2]
[335664859,1724406659731,-500.0,0.00010997,2]
[335664860,1724406659741,-638.17,0.00010997,2]
[335664861,1724406659750,-638.17,0.00010997,2]
[335664862,1724406659761,-638.17,0.00010997,2]
[335664863,1724406659772,-638.17,0.00010997,2]
[335664864,1724406659781,-638.17,0.00010997,2]
[335664865,1724406659791,-500.0,0.00010997,2]
[335664866,1724406659802,-500.0,0.00010997,2]
[335664867,1724406659812,-2117.25,0.00010997,2]
[335664868,1724406659822,-500.17,0.00010997,2]
[335664869,1724406659834,-784.32,0.00010997,2]
[335664870,1724406659844,-784.32,0.00010997,2]
[335664871,1724406659854,-784.32,0.00010997,2]
[335664872,1724406659864,-784.32,0.00010997,2]
[335664873,1724406659874,-784.32,0.00010997,2]
[335664874,1724406659883,-768.97,0.00010997,2]
[335664875,1724406659893,-500.0,0.00010997,2]
[335664876,1724406659903,-950.79,0.00010997,2]
[335664877,1724406659913,-718.26,0.00010997,2]
[335664878,1724406659924,-718.26,0.00010997,2]
[335664879,1724406659933,-718.26,0.00010997,2]
[335664880,1724406659943,-718.26,0.00010997,2]
[335664881,1724406659957,-718.26,0.00010997,2]
[335664882,1724406659974,-940.93,0.00010997,2]
[335664883,1724406659984,-940.93,0.00010997,2]
[335664884,1724406659994,-940.93,0.00010997,2]
[335664885,1724406660003,-940.93,0.00010997,2]
[335664886,1724406660013,-940.93,0.00010997,2]
[335664887,1724406660023,-2697.02,0.00010997,2]